Workbook

Sheet Portfolio
E1: Score Weightings | G1: 0.3 | H1: 0.2 | I1: 0.3 | J1: 0.2
C2: Shares | D2: Current | E2: Target | G2: Sigma | H2: Timing | I2: Quality | J2: Liquidity | K2: Total | L2: Market | M2: Trading | N2: Dollars | O2: % | P2: Average | Q2: Low | R2: High
B3: Ticker | C3: Owned | D3: Price | E3: Price | F3: % NAV | G3: Score | H3: Score | I3: Score | J3: Score | K3: Score | L3: Beta | M3: St. Dev | N3: Invested | O3: Portfolio | P3: Basis | Q3: Basis | R3: Basis
B4: FSIN | C4: 1100 | D4: 7.84 | E4: 11.5 | F4: =D4/E4 -> 0.6817391304 | G4: 3 | H4: 3 | I4: 3 | J4: 3 | K4: =SUM(G4*$G$1,H4*$H$1,I4*$I$1,,J4*$J$1) -> 3 | N4: =C4*D4 -> 8624 | O4: =N4/$N$42 -> 0.07784601872 | P4: 9.751818182 | Q4: 7.69 | R4: 14
B5: HOFD.OB | C5: 250 | D5: 27.75 | E5: 35 | F5: =D5/E5 -> 0.7928571429 | G5: 3 | H5: 2 | I5: 4 | J5: 1 | K5: =SUM(G5*$G$1,H5*$H$1,I5*$I$1,,J5*$J$1) -> 2.7 | N5: =C5*D5 -> 6937.5 | O5: =N5/$N$42 -> 0.06262253651 | P5: 21.85 | Q5: 21.5 | R5: 23.25
B6: SKYW | C6: 400 | D6: 15.79 | E6: 24 | F6: =D6/E6 -> 0.6579166667 | G6: 4 | H6: 3 | I6: 4 | J6: 3 | K6: =SUM(G6*$G$1,H6*$H$1,I6*$I$1,,J6*$J$1) -> 3.6 | N6: =C6*D6 -> 6316 | O6: =N6/$N$42 -> 0.0570124599 | P6: 16.385 | Q6: 15.77 | R6: 17
B7: FFNW | C7: 1000 | D7: 5.91 | E7: 9 | F7: =D7/E7 -> 0.6566666667 | G7: 2 | H7: 3 | I7: 3 | J7: 2 | K7: =SUM(G7*$G$1,H7*$H$1,I7*$I$1,,J7*$J$1) -> 2.5 | N7: =C7*D7 -> 5910 | O7: =N7/$N$42 -> 0.0533476311 | P7: 4.82 | Q7: 4.5 | R7: 4.9
B8: AON | C8: 90 | D8: 52.47 | E8: 55 | F8: =D8/E8 -> 0.954 | G8: 4 | H8: 3 | I8: 4 | J8: 5 | K8: =SUM(G8*$G$1,H8*$H$1,I8*$I$1,,J8*$J$1) -> 4 | N8: =C8*D8 -> 4722.3 | O8: =N8/$N$42 -> 0.04262665285 | P8: 40.17444444 | Q8: 40.61 | R8: 45.06
B9: CNQ | C9: 80 | D9: 45.39 | E9: 55 | F9: =D9/E9 -> 0.8252727273 | G9: 2 | H9: 3 | I9: 4 | J9: 5 | K9: =SUM(G9*$G$1,H9*$H$1,I9*$I$1,,J9*$J$1) -> 3.4 | N9: =C9*D9 -> 3631.2 | O9: =N9/$N$42 -> 0.03277765111 | P9: 34.2925 | Q9: 24.91 | R9: 37.42
B10: WMT | C10: 60 | D10: 53.63 | E10: 65 | F10: =D10/E10 -> 0.8250769231 | G10: 4 | H10: 3 | I10: 5 | J10: 5 | K10: =SUM(G10*$G$1,H10*$H$1,I10*$I$1,,J10*$J$1) -> 4.3 | N10: =C10*D10 -> 3217.8 | O10: =N10/$N$42 -> 0.02904602493 | P10: 55.95 | Q10: 55 | R10: 56.97
B11: GEN | C11: 750 | D11: 3.73 | E11: 7 | F11: =D11/E11 -> 0.5328571429 | G11: 2 | H11: 2 | I11: 3 | J11: 3 | K11: =SUM(G11*$G$1,H11*$H$1,I11*$I$1,,J11*$J$1) -> 2.5 | N11: =C11*D11 -> 2797.5 | O11: =N11/$N$42 -> 0.02525211472 | P11: 3.9 | Q11: 3.85 | R11: 4
B12: APC | C12: 30 | D12: 78.29 | E12: 95 | F12: =D12/E12 -> 0.8241052632 | G12: 3 | H12: 3 | I12: 4 | J12: 5 | K12: =SUM(G12*$G$1,H12*$H$1,I12*$I$1,,J12*$J$1) -> 3.7 | N12: =C12*D12 -> 2348.7 | O12: =N12/$N$42 -> 0.02120094436 | P12: 32.8 | Q12: 31.8 | R12: 38.6
B13: DSWL | C13: 700 | D13: 3.2 | E13: 5 | F13: =D13/E13 -> 0.64 | G13: 3 | H13: 2 | I13: 2 | J13: 2 | K13: =SUM(G13*$G$1,H13*$H$1,I13*$I$1,,J13*$J$1) -> 2.3 | N13: =C13*D13 -> 2240 | O13: =N13/$N$42 -> 0.02021974512 | P13: 3.5 | Q13: 3.5 | R13: 3.5
B14: HERO | C14: 400 | D14: 5.58 | E14: 9 | F14: =D14/E14 -> 0.62 | G14: 1 | H14: 4 | I14: 3 | J14: 2 | K14: =SUM(G14*$G$1,H14*$H$1,I14*$I$1,,J14*$J$1) -> 2.4 | N14: =C14*D14 -> 2232 | O14: =N14/$N$42 -> 0.02014753175 | P14: 2.5 | Q14: 2.5 | R14: 2.5
B15: LUK | C15: 60 | D15: 36.04 | E15: 40 | F15: =D15/E15 -> 0.901 | G15: 3 | H15: 3 | I15: 4 | J15: 3 | K15: =SUM(G15*$G$1,H15*$H$1,I15*$I$1,,J15*$J$1) -> 3.3 | N15: =C15*D15 -> 2162.4 | O15: =N15/$N$42 -> 0.01951927538 | P15: 27.03333333 | Q15: 23.5 | R15: 28.8
B16: ADPT.PK | C16: 650 | D16: 2.9 | E16: 3.5 | F16: =D16/E16 -> 0.8285714286 | G16: 4 | H16: 3 | I16: 3 | J16: 2 | K16: =SUM(G16*$G$1,H16*$H$1,I16*$I$1,,J16*$J$1) -> 3.1 | N16: =C16*D16 -> 1885 | O16: =N16/$N$42 -> 0.01701527659 | P16: 3.1 | Q16: 3.1 | R16: 3.1
B17: ESGR | C17: 15 | D17: 98.52 | E17: 100 | F17: =D17/E17 -> 0.9852 | G17: 3 | H17: 3 | I17: 3 | J17: 2 | K17: =SUM(G17*$G$1,H17*$H$1,I17*$I$1,,J17*$J$1) -> 2.8 | N17: =C17*D17 -> 1477.8 | O17: =N17/$N$42 -> 0.01333961578 | P17: 93.66666667 | Q17: 86 | R17: 100
B18: VOXX | C18: 200 | D18: 7.24 | E18: 10 | F18: =D18/E18 -> 0.724 | G18: 3 | H18: 3 | I18: 3 | J18: 2 | K18: =SUM(G18*$G$1,H18*$H$1,I18*$I$1,,J18*$J$1) -> 2.8 | N18: =C18*D18 -> 1448 | O18: =N18/$N$42 -> 0.01307062095 | P18: 6.71 | Q18: 6.71 | R18: 6.71
B19: TFSL | C19: 100 | D19: 10.6 | E19: 13 | F19: =D19/E19 -> 0.8153846154 | G19: 2 | H19: 2 | I19: 3 | J19: 2 | K19: =SUM(G19*$G$1,H19*$H$1,I19*$I$1,,J19*$J$1) -> 2.3 | N19: =C19*D19 -> 1060 | O19: =N19/$N$42 -> 0.009568272245 | P19: 10.63 | Q19: 10.8 | R19: 12.17
B20: MSFT | C20: 40 | D20: 25.75 | E20: 32 | F20: =D20/E20 -> 0.8046875 | G20: 3 | H20: 3 | I20: 4 | J20: 5 | K20: =SUM(G20*$G$1,H20*$H$1,I20*$I$1,,J20*$J$1) -> 3.7 | N20: =C20*D20 -> 1030 | O20: =N20/$N$42 -> 0.009297472087 | P20: 25 | Q20: 25 | R20: 25
B21: WLP | C21: 0 | D21: 69.21 | E21: 74 | F21: =D21/E21 -> 0.9352702703 | G21: 3 | H21: 3 | I21: 4 | J21: 5 | K21: =SUM(G21*$G$1,H21*$H$1,I21*$I$1,,J21*$J$1) -> 3.7 | N21: =C21*D21 -> 0 | O21: =N21/$N$42 -> 0 | P21: 0 | Q21: 49.1 | R21: 70.08
B22: TBT | C22: 0 | D22: 37.71 | E22: 40 | F22: =D22/E22 -> 0.94275 | G22: 4 | H22: 4 | I22: 2 | J22: 3 | K22: =SUM(G22*$G$1,H22*$H$1,I22*$I$1,,J22*$J$1) -> 3.2 | N22: =C22*D22 -> 0 | O22: =N22/$N$42 -> 0 | P22: 0 | Q22: 39 | R22: 47.7
B23: SPB | C23: 0 | D23: 28.23 | E23: 28 | F23: =D23/E23 -> 1.008214286 | G23: 2 | H23: 2 | I23: 2 | J23: 2 | K23: =SUM(G23*$G$1,H23*$H$1,I23*$I$1,,J23*$J$1) -> 2 | N23: =C23*D23 -> 0 | O23: =N23/$N$42 -> 0 | P23: 0 | Q23: 28.88 | R23: 29.68
B24: RHT | C24: 0 | D24: 45.66 | E24: 30 | F24: =D24/E24 -> 1.522 | G24: 3 | H24: 3 | I24: 4 | J24: 3 | K24: =SUM(G24*$G$1,H24*$H$1,I24*$I$1,,J24*$J$1) -> 3.3 | N24: =C24*D24 -> 0 | O24: =N24/$N$42 -> 0 | P24: 0 | Q24: 13.63 | R24: 28.84
B25: OBAF | C25: 0 | D25: 14.75 | E25: 18.5 | F25: =D25/E25 -> 0.7972972973 | G25: 4 | H25: 4 | I25: 3 | J25: 1 | K25: =SUM(G25*$G$1,H25*$H$1,I25*$I$1,,J25*$J$1) -> 3.1 | N25: =C25*D25 -> 0 | O25: =N25/$N$42 -> 0 | P25: 0 | Q25: 0 | R25: 0
B26: LMT | C26: 0 | D26: 78.37 | E26: 85 | F26: =D26/E26 -> 0.922 | G26: 3 | H26: 2 | I26: 4 | J26: 5 | K26: =SUM(G26*$G$1,H26*$H$1,I26*$I$1,,J26*$J$1) -> 3.5 | N26: =C26*D26 -> 0 | O26: =N26/$N$42 -> 0 | P26: 0 | Q26: 69 | R26: 104.64
B27: HRG | C27: 0 | D27: 5.54 | E27: 6 | F27: =D27/E27 -> 0.9233333333 | G27: 4 | H27: 3 | I27: 3 | J27: 1 | K27: =SUM(G27*$G$1,H27*$H$1,I27*$I$1,,J27*$J$1) -> 2.9 | N27: =C27*D27 -> 0 | O27: =N27/$N$42 -> 0 | P27: 0 | Q27: 4.45 | R27: 5.85
B28: HRBN | C28: 0 | D28: 18.66 | E28: 24 | F28: =D28/E28 -> 0.7775 | G28: 2 | H28: 2 | I28: 2 | J28: 2 | K28: =SUM(G28*$G$1,H28*$H$1,I28*$I$1,,J28*$J$1) -> 2 | N28: =C28*D28 -> 0 | O28: =N28/$N$42 -> 0 | P28: 0 | Q28: 0 | R28: 0
B29: HRB | C29: 0 | D29: 17.59 | E29: 18 | F29: =D29/E29 -> 0.9772222222 | G29: 4 | H29: 3 | I29: 4 | J29: 4 | K29: =SUM(G29*$G$1,H29*$H$1,I29*$I$1,,J29*$J$1) -> 3.8 | N29: =C29*D29 -> 0 | O29: =N29/$N$42 -> 0 | P29: 0 | Q29: 0 | R29: 0
B30: HAWKQ.PK | C30: 0 | D30: 6.24 | E30: 7 | F30: =D30/E30 -> 0.8914285714 | G30: 1 | H30: 3 | I30: 2 | J30: 2 | K30: =SUM(G30*$G$1,H30*$H$1,I30*$I$1,,J30*$J$1) -> 1.9 | N30: =C30*D30 -> 0 | O30: =N30/$N$42 -> 0 | P30: 0 | Q30: 5 | R30: 9.75
B31: BR | C31: 0 | D31: 22.88 | E31: 25 | F31: =D31/E31 -> 0.9152 | G31: 4 | H31: 5 | I31: 4 | J31: 3 | K31: =SUM(G31*$G$1,H31*$H$1,I31*$I$1,,J31*$J$1) -> 4 | N31: =C31*D31 -> 0 | O31: =N31/$N$42 -> 0 | P31: 0 | Q31: 19.15 | R31: 22.7
B32: AMSC | C32: -25 | D32: 12.81 | E32: 10 | F32: =D32/E32 -> 1.281 | G32: 2 | H32: 3 | I32: 3 | J32: 3 | K32: =SUM(G32*$G$1,H32*$H$1,I32*$I$1,,J32*$J$1) -> 2.7 | N32: =C32*D32 -> -320.25 | O32: =N32/$N$42 -> -0.002890791685 | P32: 22.13 | Q32: 22.13 | R32: 22.13
B33: FSLR | C33: -4 | D33: 144.85 | E33: 110 | F33: =D33/E33 -> 1.316818182 | G33: 2 | H33: 3 | I33: 3 | J33: 3 | K33: =SUM(G33*$G$1,H33*$H$1,I33*$I$1,,J33*$J$1) -> 2.7 | N33: =C33*D33 -> -579.4 | O33: =N33/$N$42 -> -0.005230053716 | P33: 121.4 | Q33: 105 | R33: 145.62
B34: NILE | C34: -15 | D34: 52.79 | E34: 40 | F34: =D34/E34 -> 1.31975 | G34: 4 | H34: 4 | I34: 2 | J34: 3 | K34: =SUM(G34*$G$1,H34*$H$1,I34*$I$1,,J34*$J$1) -> 3.2 | N34: =C34*D34 -> -791.85 | O34: =N34/$N$42 -> -0.007147770167 | P34: 68.46026667 | Q34: 34.3614 | R34: 60
B35: WABC | C35: -20 | D35: 50.06 | E35: 38 | F35: =D35/E35 -> 1.317368421 | G35: 4 | H35: 3 | I35: 3 | J35: 2 | K35: =SUM(G35*$G$1,H35*$H$1,I35*$I$1,,J35*$J$1) -> 3.1 | N35: =C35*D35 -> -1001.2 | O35: =N35/$N$42 -> -0.009037503935 | P35: 41.31 | Q35: 39.5 | R35: 52.44
B36: VPRT | C36: -20 | D36: 52.5 | E36: 40 | F36: =D36/E36 -> 1.3125 | G36: 3 | H36: 5 | I36: 3 | J36: 3 | K36: =SUM(G36*$G$1,H36*$H$1,I36*$I$1,,J36*$J$1) -> 3.4 | N36: =C36*D36 -> -1050 | O36: =N36/$N$42 -> -0.009478005525 | P36: 24.01 | Q36: 24.01 | R36: 24.01
B37: NVR | C37: -2 | D37: 755.8 | E37: 550 | F37: =D37/E37 -> 1.374181818 | G37: 4 | H37: 3 | I37: 3 | J37: 2 | K37: =SUM(G37*$G$1,H37*$H$1,I37*$I$1,,J37*$J$1) -> 3.1 | N37: =C37*D37 -> -1511.6 | O37: =N37/$N$42 -> -0.01364471729 | P37: 582.5 | Q37: 500 | R37: 665
B39: FAIRX | C39: 588.125 | D39: 36.04 | N39: =C39*D39 -> 21196.025 | O39: =N39/$N$42 -> 0.1913295639
B40: BRUFX | C40: 12.84 | D40: 373.9 | N40: 4800.876 | O40: =N40/$N$42 -> 0.04333593262
B41: Cash | C41: 32000 | D41: 1 | N41: 32000 | O41: =N41/$N$42 -> 0.2888535017
N42: =SUM(N4:N41) -> 110782.801

Sheet Trades
C2: Buy/Sell
B3: Date | C3: Shares In/Shares Out | D3: Ticker | E3: Shares | F3: Price | G3: Commission | H3: WA Cost Basis
B4: 2008-02-19 | C4: Buy | D4: FISV | E4: 30 | F4: 52.35 | G4: 0 | H4: =F4*E4 -> 1570.5
B5: 2008-02-29 | C5: Buy | D5: AON | E5: 80 | F5: 40.61 | G5: 1 | H5: 3248.8
B6: 2008-02-29 | C6: Buy | D6: BR | E6: 125 | F6: 19.15 | G6: 0 | H6: 2393.75
B7: 2008-02-29 | C7: Buy | D7: BRUFX | E7: 12.84 | F7: 339.8 | G7: 0 | H7: 4363.032
B8: 2008-02-29 | C8: Shares in | D8: Cash | E8: 73505.86 | F8: 1 | G8: 0 | H8: 73505.86
B9: 2008-02-29 | C9: Buy | D9: CNQ | E9: 60 | F9: 37.42 | G9: 0 | H9: 2245.2
B10: 2008-02-29 | C10: Buy | D10: FAIRX | E10: 588.125 | F10: 31.97 | G10: 0 | H10: 18802.35625
B11: 2008-02-29 | C11: Buy | D11: FAST | E11: 35 | F11: 40.84 | G11: 0 | H11: 1429.4
B12: 2008-02-29 | C12: Buy | D12: JCI | E12: 30 | F12: 32.86 | G12: 0 | H12: 985.8
B13: 2008-02-29 | C13: Buy | D13: KMKNX | E13: 365.573 | F13: 13.41 | G13: 0 | H13: 4902.33393
B14: 2008-02-29 | C14: Buy | D14: KSCOX | E14: 75.993 | F14: 27.15 | G14: 0 | H14: 2063.20995
B15: 2008-02-29 | C15: Buy | D15: LMT | E15: 50 | F15: 103.2 | G15: 0 | H15: 5160
B16: 2008-02-29 | C16: Buy | D16: ORCL | E16: 140 | F16: 18.92 | G16: 0 | H16: 2648.8
B17: 2008-02-29 | C17: Buy | D17: PH | E17: 35 | F17: 64.64 | G17: 1 | H17: 2262.4
B18: 2008-02-29 | C18: Buy | D18: S | E18: 60 | F18: 6.11 | G18: 0 | H18: 366.6
B19: 2008-02-29 | C19: Buy | D19: SFG | E19: 20 | F19: 49.09 | G19: 1 | H19: 981.8
B20: 2008-02-29 | C20: Buy | D20: SII | E20: 105 | F20: 63.2 | G20: 1 | H20: 6636
B21: 2008-02-29 | C21: Buy | D21: STRA | E21: 10 | F21: 155.7 | G21: 1 | H21: 1557
B22: 2008-02-29 | C22: Buy | D22: SYK | E22: 25 | F22: 65.11 | G22: 1 | H22: 1627.75
B23: 2008-02-29 | C23: Buy | D23: TNB | E23: 30 | F23: 40.15 | G23: 1 | H23: 1204.5
B24: 2008-02-29 | C24: Buy | D24: WLP | E24: 75 | F24: 70.08 | G24: 1 | H24: 5256
B25: 2008-02-29 | C25: Buy | D25: WWNPX | E25: 107.643 | F25: 27.28 | G25: 0 | H25: 2936.50104
B26: 2008-04-01 | C26: Shares in | D26: Cash | E26: 2000 | F26: 1 | G26: 0 | H26: 2000
B27: 2008-05-01 | C27: Shares in | D27: Cash | E27: 2000 | F27: 1 | G27: 0 | H27: 2000
B28: 2008-06-01 | C28: Shares in | D28: Cash | E28: 2000 | F28: 1 | G28: 0 | H28: 2000
B29: 2008-06-24 | C29: sell | D29: LMT | E29: -5 | F29: 104.64 | G29: 1 | H29: -523.2
B30: 2008-06-24 | C30: sell | D30: WLP | E30: -30 | F30: 49.1 | G30: 1 | H30: -1473
B31: 2008-06-24 | C31: Buy | D31: WRB | E31: 40 | F31: 25.29 | G31: 1 | H31: 1011.6
B32: 2008-07-01 | C32: Shares in | D32: Cash | E32: 14000 | F32: 1 | G32: 0 | H32: 14000
B33: 2008-07-21 | C33: Buy | D33: AON | E33: 10 | F33: 45.06 | G33: 1 | H33: 450.6
B34: 2008-07-21 | C34: Buy | D34: MHK | E34: 30 | F34: 64.37 | G34: 1 | H34: 1931.1
B35: 2008-07-21 | C35: Buy | D35: RTN | E35: 50 | F35: 57 | G35: 1 | H35: 2850
B36: 2008-07-22 | C36: Buy | D36: TFSL | E36: 100 | F36: 10.8 | G36: 1 | H36: 1080
B37: 2008-07-30 | C37: Buy | D37: EXH | E37: 18 | F37: 56.5 | G37: 1 | H37: 1017
B38: 2008-08-01 | C38: Shares in | D38: Cash | E38: 2500 | F38: 1 | G38: 0 | H38: 2500
B39: 2008-08-05 | C39: Buy | D39: ADM | E39: 40 | F39: 27 | G39: 1 | H39: 1080
B40: 2008-08-05 | C40: Buy | D40: CME | E40: 2 | F40: 329.85 | G40: 1 | H40: 659.7
B41: 2008-08-05 | C41: Buy | D41: FSIN | E41: 50 | F41: 14 | G41: 1 | H41: 700
B42: 2008-08-05 | C42: Buy | D42: ICE | E42: 7 | F42: 86.17 | G42: 1 | H42: 603.19
B43: 2008-08-05 | C43: Sell | D43: KSCOX | E43: 75.993 | F43: 22.89 | G43: 1 | H43: 1739.47977
B44: 2008-08-05 | C44: Buy | D44: NDAQ | E44: 25 | F44: 26 | G44: 1 | H44: 650
B45: 2008-08-05 | C45: Buy | D45: NYX | E45: 15 | F45: 40.95 | G45: 1 | H45: 614.25
B46: 2008-08-27 | C46: Buy | D46: MDT | E46: 45 | F46: 55 | G46: 1 | H46: 2475
B47: 2008-09-01 | C47: Shares in | D47: Cash | E47: 2500 | F47: 1 | G47: 0 | H47: 2500
B48: 2008-09-02 | C48: Buy | D48: Dow | E48: 42 | F48: 35 | G48: 1 | H48: 1470
B49: 2008-09-12 | C49: Sell | D49: TNB | E49: 30 | F49: 43.98 | G49: 1 | H49: 1319.4
B50: 2008-09-16 | C50: Buy | D50: DPS | E50: 40 | F50: 25 | G50: 1 | H50: 1000
B51: 2008-09-16 | C51: Buy | D51: PICO | E51: 10 | F51: 39.75 | G51: 1 | H51: 397.5
B52: 2008-09-18 | C52: Sell | D52: FAST | E52: 20 | F52: 54.18 | G52: 1 | H52: 1083.6
B53: 2008-09-18 | C53: Buy | D53: PICO | E53: 10 | F53: 36.28 | G53: 1 | H53: 362.8
B54: 2008-09-18 | C54: Sell | D54: STRA | E54: 5 | F54: 216.03 | G54: 1 | H54: 1080.15
B55: 2008-09-22 | C55: Buy | D55: MW | E55: 25 | F55: 23 | G55: 1 | H55: 575
B56: 2008-09-23 | C56: Buy | D56: MDT | E56: 45 | F56: 51.75 | G56: 1 | H56: 2328.75
B57: 2008-09-29 | C57: Buy | D57: ESGR | E57: 5 | F57: 100 | G57: 1 | H57: 500
B58: 2008-09-30 | C58: Buy | D58: PICO | E58: 10 | F58: 36 | G58: 1 | H58: 360
B59: 2008-09-30 | C59: Buy | D59: SFG | E59: 10 | F59: 45 | G59: 1 | H59: 450
B60: 2008-10-01 | C60: Shares in | D60: Cash | E60: 7500 | F60: 1 | G60: 0 | H60: 7500
B61: 2008-10-01 | C61: Buy | D61: ESGR | E61: 5 | F61: 95 | G61: 1 | H61: 475
B62: 2008-10-01 | C62: Buy | D62: IBKR | E62: 25 | F62: 23 | G62: 1 | H62: 575
B63: 2008-10-01 | C63: Buy | D63: PICO | E63: 10 | F63: 35.48 | G63: 1 | H63: 354.8
B64: 2008-10-02 | C64: Buy | D64: IBKR | E64: 20 | F64: 22 | G64: 1 | H64: 440
B65: 2008-10-02 | C65: Buy | D65: PICO | E65: 15 | F65: 34 | G65: 1 | H65: 510
B66: 2008-10-03 | C66: Sell | D66: MHK | E66: 20 | F66: 63.19 | G66: 1 | H66: 1263.8
B67: 2008-10-03 | C67: Buy | D67: PICO | E67: 10 | F67: 31.59 | G67: 1 | H67: 315.9
B68: 2008-10-06 | C68: Buy | D68: ESGR | E68: 5 | F68: 86 | G68: 1 | H68: =F68*E68 -> 430
B69: 2008-10-06 | C69: Buy | D69: PICO | E69: 10 | F69: 30 | G69: 1 | H69: 300
B70: 2008-10-06 | C70: Buy | D70: WRB | E70: 20 | F70: 22.25 | G70: 1 | H70: 445
B71: 2008-10-07 | C71: Sell | D71: KMKNX | E71: 175.234 | F71: 8.56 | G71: 0 | H71: 1500.00304
B72: 2008-10-08 | C72: Sell | D72: ADM | E72: 40 | F72: 16.7 | G72: 1 | H72: 668
B73: 2008-10-08 | C73: Sell | D73: WWNPX | E73: 59.666 | F73: 16.76 | G73: 0 | H73: 1000.00216
B74: 2008-10-09 | C74: Buy | D74: CNQ | E74: 20 | F74: 24.91 | G74: 1 | H74: 498.2
B75: 2008-10-09 | C75: Buy | D75: DOW | E75: 20 | F75: 28 | G75: 1 | H75: 560
B76: 2008-10-09 | C76: Buy | D76: MKL | E76: 3 | F76: 330 | G76: 1 | H76: 990
B77: 2008-10-09 | C77: Sell | D77: NILE | E77: -40 | F77: 38.44 | G77: 1 | H77: -1537.6
B78: 2008-10-09 | C78: Buy | D78: PICO | E78: 10 | F78: 28 | G78: 1 | H78: 280
B79: 2008-10-09 | C79: Buy | D79: RLI | E79: 30 | F79: 50 | G79: 1 | H79: 1500
B80: 2008-10-10 | C80: Buy | D80: MDT | E80: 10 | F80: 40 | G80: 1 | H80: 400
B81: 2008-10-10 | C81: Buy | D81: PICO | E81: 10 | F81: 26 | G81: 1 | H81: 260
B82: 2008-10-13 | C82: Buy | D82: APC | E82: 30 | F82: 31.8 | G82: 1 | H82: 954
B83: 2008-10-13 | C83: Buy | D83: CSCO | E83: 30 | F83: 18.47 | G83: 1 | H83: 554.1
B84: 2008-10-13 | C84: Buy | D84: MDT | E84: 10 | F84: 43.49 | G84: 1 | H84: 434.9
B85: 2008-10-14 | C85: Sell | D85: CRM | E85: 30 | F85: 36 | G85: 1 | H85: 1080
B86: 2008-10-14 | C86: Buy | D86: DPS | E86: 15 | F86: 24 | G86: 1 | H86: 360
B87: 2008-10-14 | C87: Buy | D87: IBKR | E87: 20 | F87: 23 | G87: 1 | H87: 460
B88: 2008-10-16 | C88: Buy | D88: NILE | E88: 40 | F88: 34.3614 | G88: 0 | H88: 1374.456
B89: 2008-10-17 | C89: Buy | D89: SYK | E89: 8 | F89: 53 | G89: 1 | H89: 424
B90: 2008-10-21 | C90: Sell | D90: FSLR | E90: -5 | F90: 145.62 | G90: 1 | H90: -728.1
B91: 2008-10-27 | C91: Buy | D91: PICO | E91: 10 | F91: 24 | G91: 1 | H91: 240
B92: 2008-10-30 | C92: Buy | D92: FSLR | E92: 5 | F92: 132.5 | G92: 0 | H92: 662.5
B93: 2008-11-01 | C93: Shares in | D93: Cash | E93: 2500 | F93: 1 | G93: 0 | H93: 2500
B94: 2008-11-13 | C94: Buy | D94: PICO | E94: 10 | F94: 22 | G94: 1 | H94: 220
B95: 2008-11-21 | C95: Buy | D95: PICO | E95: 20 | F95: 18 | G95: 1 | H95: 360
B96: 2008-11-24 | C96: Buy | D96: MDT | E96: 30 | F96: 31 | G96: 1 | H96: 930
B97: 2008-11-24 | C97: Buy | D97: SII | E97: 30 | F97: 24 | G97: 1 | H97: 720
B98: 2008-11-24 | C98: Buy | D98: SYK | E98: 20 | F98: 38 | G98: 1 | H98: 760
B99: 2008-12-01 | C99: Shares Out | D99: APC | E99: -30 | F99: 37.6 | G99: 0 | H99: -1128
B100: 2008-12-01 | C100: Shares Out | D100: STRA | E100: 5 | F100: 221.04 | G100: 0 | H100: 1105.2
B101: 2008-12-02 | C101: Shares Out | D101: AON | E101: -90 | F101: 43.93 | G101: 0 | H101: -3953.7
B102: 2008-12-02 | C102: Buy | D102: AON | E102: 90 | F102: 43 | G102: 1 | H102: 3870
B103: 2008-12-02 | C103: Buy | D103: APC | E103: 30 | F103: 38.6 | G103: 1 | H103: 1158
B104: 2008-12-02 | C104: Shares In | D104: Cash | E104: 10731.2 | F104: 1 | G104: 0 | H104: 10731.2
B105: 2008-12-02 | C105: Shares Out | D105: RLI | E105: 30 | F105: 56.55 | G105: 0 | H105: 1696.5
B106: 2008-12-02 | C106: Shares Out | D106: TFSL | E106: -100 | F106: 12.17 | G106: 0 | H106: -1217
B107: 2008-12-02 | C107: Buy | D107: TFSL | E107: 100 | F107: 12 | G107: 1 | H107: 1200
B108: 2008-12-02 | C108: Shares Out | D108: WRB | E108: 60 | F108: 27.42 | G108: 0 | H108: 1645.2
B109: 2008-12-02 | C109: Buy | D109: WRB | E109: 60 | F109: 26 | G109: 1 | H109: 1560
B110: 2009-02-13 | C110: sell | D110: GHL | E110: 10 | F110: 70.72 | G110: 1 | H110: 707.2
B111: 2009-02-25 | C111: sell | D111: GHL | E111: 5 | F111: 67.5 | G111: 1 | H111: 337.5
B112: 2009-02-25 | C112: Buy | D112: MF | E112: 100 | F112: 4 | G112: 1 | H112: 400
B113: 2009-02-25 | C113: sell | D113: WABC | E113: -10 | F113: 40 | G113: 1 | H113: -400
B114: 2009-03-02 | C114: sell | D114: FSLR | E114: -4 | F114: 105 | G114: 1 | H114: -420
B115: 2009-03-02 | C115: sell | D115: RHT | E115: -30 | F115: 13.63 | G115: 1 | H115: -408.9
B116: 2009-03-02 | C116: sell | D116: VPRT | E116: -20 | F116: 24.01 | G116: 1 | H116: -480.2
B117: 2009-03-02 | C117: sell | D117: WABC | E117: -10 | F117: 39.5 | G117: 1 | H117: -395
B118: 2009-03-03 | C118: Buy | D118: OI | E118: 35 | F118: 13 | G118: 1 | H118: 455
B119: 2009-03-04 | C119: Buy | D119: ORBC | E119: 225 | F119: 1.75 | G119: 1 | H119: 393.75
B120: 2009-04-17 | C120: Buy | D120: CRM | E120: 30 | F120: 38.33 | G120: 0 | H120: 1149.9
B121: 2009-05-13 | C121: Buy | D121: VOL | E121: 50 | F121: 7 | G121: 1 | H121: 350
B122: 2009-05-18 | C122: Sell | D122: NVR | E122: -1 | F122: 500 | G122: 1 | H122: -500
B123: 2009-05-22 | C123: Sell | D123: DOW | E123: 62 | F123: 17.13 | G123: 1 | H123: 1062.06
B124: 2009-05-22 | C124: Buy | D124: WABC | E124: 20 | F124: 50.88 | G124: 0 | H124: 1017.6
B125: 2009-05-27 | C125: Sell | D125: WABC | E125: -20 | F125: 52.44 | G125: 1 | H125: -1048.8
B126: 2009-07-13 | C126: Sell | D126: AMSC | E126: -25 | F126: 22.13 | G126: 1 | H126: -553.25
B127: 2009-07-13 | C127: Sell | D127: CME | E127: 1 | F127: 265.1 | G127: 1 | H127: 265.1
B128: 2009-07-13 | C128: Sell | D128: ICE | E128: 3 | F128: 85.57 | G128: 1 | H128: 256.71
B129: 2009-07-13 | C129: Sell | D129: PH | E129: 12 | F129: 41 | G129: 1 | H129: 492
B130: 2009-08-07 | C130: Shares Out | D130: OI | E130: 35 | F130: 33.9 | G130: 0 | H130: 1186.5
B131: 2009-08-11 | C131: Buy | D131: OI | E131: 35 | F131: 33.42 | G131: 1 | H131: 1169.7
B132: 2009-08-11 | C132: Buy | D132: URI | E132: 50 | F132: 8.2 | G132: 1 | H132: =F132*E132 -> 410
B133: 2009-08-20 | C133: Buy | D133: GHL | E133: 15 | F133: 73.65 | G133: 0 | H133: 1104.75
B134: 2009-09-10 | C134: Sell | D134: NILE | E134: -8 | F134: 55.47 | G134: 1 | H134: -443.76
B135: 2009-09-10 | C135: Sell | D135: NVR | E135: -1 | F135: 665 | G135: 1 | H135: -665
B136: 2009-09-10 | C136: Buy | D136: TBT | E136: 10 | F136: 47.7 | G136: 1 | H136: 477
B137: 2009-09-11 | C137: Buy | D137: LMT | E137: 6 | F137: 73.5 | G137: 1 | H137: 441
B138: 2009-09-23 | C138: Buy | D138: SYK | E138: 10 | F138: 45 | G138: 1 | H138: 450
B139: 2009-10-05 | C139: Sell | D139: EXH | E139: 18 | F139: 22.54 | G139: 1 | H139: 405.72
B140: 2009-10-05 | C140: Buy | D140: LMT | E140: 6 | F140: 75.49 | G140: 1 | H140: 452.94
B141: 2009-10-05 | C141: Buy | D141: SYK | E141: 10 | F141: 43.93 | G141: 1 | H141: 439.3
B142: 2009-10-06 | C142: Shares Out | D142: ORBC | E142: 225 | F142: 2.96 | G142: 0 | H142: 666
B143: 2009-10-14 | C143: Sell | D143: NILE | E143: -7 | F143: 60 | G143: 1 | H143: -420
B144: 2009-10-28 | C144: Buy | D144: LMT | E144: 6 | F144: 69.98 | G144: 1 | H144: 419.88
B145: 2009-11-02 | C145: Buy | D145: LMT | E145: 6 | F145: 69 | G145: 1 | H145: 414
B146: 2010-01-11 | C146: Buy | D146: LUK | E146: 40 | F146: 28.8 | G146: 1 | H146: 1152
B147: 2010-01-26 | C147: Sell | D147: CME | E147: 1 | F147: 297.2 | G147: 1 | H147: 297.2
B148: 2010-01-26 | C148: Sell | D148: ICE | E148: 4 | F148: 98.2 | G148: 1 | H148: 392.8
B149: 2010-01-26 | C149: Buy | D149: LUK | E149: 20 | F149: 23.5 | G149: 1 | H149: 470
B150: 2010-02-17 | C150: Sell | D150: NDAQ | E150: 25 | F150: 18.61 | G150: 1 | H150: 465.25
B151: 2010-02-17 | C151: Sell | D151: NYX | E151: 15 | F151: 25.5 | G151: 1 | H151: 382.5
B152: 2010-03-02 | C152: Buy | D152: CKH | E152: 10 | F152: 79.75 | G152: 1 | H152: 797.5
B153: 2010-03-02 | C153: Buy | D153: KBR | E153: 20 | F153: 21 | G153: 1 | H153: 420
B154: 2010-03-02 | C154: Sell | D154: MHK | E154: 10 | F154: 52.31 | G154: 1 | H154: 523.1
B155: 2010-03-02 | C155: Sell | D155: PH | E155: 23 | F155: 62 | G155: 1 | H155: 1426
B156: 2010-03-02 | C156: Sell | D156: SII | E156: 20 | F156: 42.07 | G156: 1 | H156: 841.4
B157: 2010-03-11 | C157: Sell | D157: MDT | E157: 25 | F157: 44.01 | G157: 1 | H157: 1100.25
B158: 2010-03-11 | C158: Sell | D158: SII | E158: 20 | F158: 43 | G158: 1 | H158: 860
B159: 2010-03-17 | C159: Sell | D159: SII | E159: 20 | F159: 44.5 | G159: 1 | H159: 890
B160: 2010-03-19 | C160: Buy | D160: HOFD.OB | E160: 50 | F160: 23.25 | G160: 1 | H160: 1162.5
B161: 2010-03-23 | C161: Buy | D161: HOFD.OB | E161: 200 | F161: 21.5 | G161: 1 | H161: 4300
B162: 2010-03-23 | C162: Sell | D162: MDT | E162: 20 | F162: 45.62 | G162: 1 | H162: 912.4
B163: 2010-03-24 | C163: Sell | D163: MDT | E163: 20 | F163: 45.02 | G163: 1 | H163: 900.4
B164: 2010-04-01 | C164: Sell | D164: MDT | E164: 20 | F164: 45.5 | G164: 1 | H164: 910
B165: 2010-04-01 | C165: Sell | D165: SII | E165: 20 | F165: 43.5 | G165: 1 | H165: 870
B166: 2010-05-10 | C166: Buy | D166: ADPT.PK | E166: 650 | F166: 3.1 | G166: 1 | H166: 2015
B167: 2010-05-19 | C167: Buy | D167: ASCMA | E167: 70 | F167: 28 | G167: 1 | H167: 1960
B168: 2010-07-01 | C168: Sell | D168: CKH | E168: 10 | F168: 69.1 | G168: 1 | H168: 691
B169: 2010-07-01 | C169: Sell | D169: CSCO | E169: 30 | F169: 21.09 | G169: 1 | H169: 632.7
B170: 2010-07-01 | C170: Shares Out | D170: DPS | E170: 55 | F170: 37.39 | G170: 0 | H170: 2056.45
B171: 2010-07-01 | C171: Sell | D171: FAST | E171: 15 | F171: 49.28 | G171: 1 | H171: 739.2
B172: 2010-07-01 | C172: Sell | D172: FISV | E172: 30 | F172: 45.46 | G172: 1 | H172: 1363.8
B173: 2010-07-01 | C173: Sell | D173: FSIN | E173: -50 | F173: 7.69 | G173: 1 | H173: -384.5
B174: 2010-07-01 | C174: Sell | D174: IBKR | E174: 65 | F174: 16.26 | G174: 1 | H174: 1056.9
B175: 2010-07-01 | C175: Sell | D175: JCI | E175: 30 | F175: 26.64 | G175: 1 | H175: 799.2
B176: 2010-07-01 | C176: Sell | D176: KBR | E176: 20 | F176: 19.77 | G176: 1 | H176: 395.4
B177: 2010-07-01 | C177: Sell | D177: MDT | E177: 55 | F177: 35.43 | G177: 1 | H177: 1948.65
B178: 2010-07-01 | C178: Shares Out | D178: MF | E178: 100 | F178: 5.71 | G178: 0 | H178: 571
B179: 2010-07-01 | C179: Sell | D179: MKL | E179: 3 | F179: 340 | G179: 1 | H179: 1020
B180: 2010-07-01 | C180: Sell | D180: MW | E180: 25 | F180: 18.58 | G180: 1 | H180: 464.5
B181: 2010-07-01 | C181: Sell | D181: OI | E181: 35 | F181: 26.33 | G181: 1 | H181: 921.55
B182: 2010-07-01 | C182: Buy | D182: OI | E182: 35 | F182: 26.32 | G182: 1 | H182: 921.2
B183: 2010-07-01 | C183: Sell | D183: OI | E183: 35 | F183: 26.3 | G183: 1 | H183: 920.5
B184: 2010-07-01 | C184: Sell | D184: ORCL | E184: 140 | F184: 21.4 | G184: 1 | H184: 2996
B185: 2010-07-01 | C185: Shares Out | D185: PCP | E185: 15 | F185: 102.92 | G185: 0 | H185: 1543.8
B186: 2010-07-01 | C186: Shares Out | D186: PICO | E186: 30 | F186: 29.97 | G186: 0 | H186: 899.1
B187: 2010-07-01 | C187: Sell | D187: PICO | E187: 105 | F187: 30.22 | G187: 1 | H187: 3173.1
B188: 2010-07-01 | C188: Buy | D188: RHT | E188: 30 | F188: 28.84 | G188: 1 | H188: 865.2
B189: 2010-07-01 | C189: Sell | D189: RTN | E189: 50 | F189: 47.52 | G189: 1 | H189: 2376
B190: 2010-07-01 | C190: Sell | D190: S | E190: 60 | F190: 4.27 | G190: 1 | H190: 256.2
B191: 2010-07-01 | C191: Sell | D191: SFG | E191: 5 | F191: 39.47 | G191: 1 | H191: 197.35
B192: 2010-07-01 | C192: Sell | D192: SFG | E192: 25 | F192: 39.5 | G192: 1 | H192: 987.5
B193: 2010-07-01 | C193: Sell | D193: SII | E193: 55 | F193: 37.02 | G193: 1 | H193: 2036.1
B194: 2010-07-01 | C194: Sell | D194: SYK | E194: 73 | F194: 49.14 | G194: 1 | H194: 3587.22
B195: 2010-07-01 | C195: Sell | D195: URI | E195: 50 | F195: 8.77 | G195: 1 | H195: 438.5
B196: 2010-07-01 | C196: Sell | D196: VOL | E196: 50 | F196: 8.1 | G196: 1 | H196: =F196*E196 -> 405
B197: 2010-07-01 | C197: Sell | D197: WRB | E197: 60 | F197: 25.99 | G197: 1 | H197: 1559.4
B198: 2010-07-08 | C198: Buy | D198: ASCMA | E198: 50 | F198: 25 | G198: 1 | H198: 1250
B199: 2010-07-08 | C199: Buy | D199: DSWL | E199: 700 | F199: 3.5 | G199: 1 | H199: 2450
B200: 2010-07-09 | C200: Buy | D200: NUHC | E200: 700 | F200: 3.5 | G200: 1 | H200: 2450
B201: 2010-07-09 | C201: Buy | D201: PCP | E201: 15 | F201: 70 | G201: 1 | H201: 1050
... 43 more rows

Sheet ImportData

Sheet Sheet1
E2: Score Weightings | G2: 0.3 | H2: 0.2 | I2: 0.3 | J2: 0.2
C3: Shares | D3: Current | E3: Target | G3: Sigma | H3: Timing | I3: Quality | J3: Liquidity | K3: Total | L3: Market | M3: Trading | N3: Dollars | O3: % | P3: Average | Q3: Low | R3: High
B4: Ticker | C4: Owned | D4: Price | E4: Price | F4: % NAV | G4: Score | H4: Score | I4: Score | J4: Score | K4: Score | L4: Beta | M4: St. Dev | N4: Invested | O4: Portfolio | P4: Basis | Q4: Basis | R4: Basis
B5: FSIN | C5: 1100 | D5: 7.97 | E5: 11.5 | F5: 0.6930434783 | G5: 3 | H5: 3 | I5: 3 | J5: 3 | K5: 3 | N5: 8767 | O5: 0.07919999531 | P5: 9.751818182 | Q5: 7.69 | R5: 14
B6: HOFD.OB | C6: 250 | D6: 28 | E6: 35 | F6: 0.8 | G6: 3 | H6: 2 | I6: 4 | J6: 1 | K6: 2.7 | N6: 7000 | O6: 0.06323713553 | P6: 21.85 | Q6: 21.5 | R6: 23.25
B7: SKYW | C7: 400 | D7: 15.79 | E7: 24 | F7: 0.6579166667 | G7: 4 | H7: 3 | I7: 4 | J7: 3 | K7: 3.6 | N7: 6316 | O7: 0.057057964 | P7: 16.385 | Q7: 15.77 | R7: 17
B8: FFNW | C8: 1000 | D8: 5.83 | E8: 9 | F8: 0.6477777778 | G8: 2 | H8: 3 | I8: 3 | J8: 2 | K8: 2.5 | N8: 5830 | O8: 0.05266750002 | P8: 4.82 | Q8: 4.5 | R8: 4.9
B9: AON | C9: 90 | D9: 52.21 | E9: 55 | F9: 0.9492727273 | G9: 4 | H9: 3 | I9: 4 | J9: 5 | K9: 4 | N9: 4698.9 | O9: 0.0424492823 | P9: 40.17444444 | Q9: 40.61 | R9: 45.06
B10: CNQ | C10: 80 | D10: 46.07 | E10: 55 | F10: 0.8376363636 | G10: 2 | H10: 3 | I10: 4 | J10: 5 | K10: 3.4 | N10: 3685.6 | O10: 0.03329525524 | P10: 34.2925 | Q10: 24.91 | R10: 37.42
B11: WMT | C11: 60 | D11: 53.52 | E11: 65 | F11: 0.8233846154 | G11: 4 | H11: 3 | I11: 5 | J11: 5 | K11: 4.3 | N11: 3211.2 | O11: 0.02900958423 | P11: 55.95 | Q11: 55 | R11: 56.97
B12: GEN | C12: 750 | D12: 3.7 | E12: 7 | F12: 0.5285714286 | G12: 2 | H12: 2 | I12: 3 | J12: 3 | K12: 2.5 | N12: 2775 | O12: 0.0250690073 | P12: 3.9 | Q12: 3.85 | R12: 4
B13: APC | C13: 30 | D13: 77.43 | E13: 95 | F13: 0.8150526316 | G13: 3 | H13: 3 | I13: 4 | J13: 5 | K13: 3.7 | N13: 2322.9 | O13: 0.02098479173 | P13: 32.8 | Q13: 31.8 | R13: 38.6
B14: DSWL | C14: 700 | D14: 3.18 | E14: 5 | F14: 0.636 | G14: 3 | H14: 2 | I14: 2 | J14: 2 | K14: 2.3 | N14: 2226 | O14: 0.0201094091 | P14: 3.5 | Q14: 3.5 | R14: 3.5
B15: LUK | C15: 60 | D15: 36.4 | E15: 40 | F15: 0.91 | G15: 3 | H15: 3 | I15: 4 | J15: 3 | K15: 3.3 | N15: 2184 | O15: 0.01972998628 | P15: 27.03333333 | Q15: 23.5 | R15: 28.8
B16: HERO | C16: 400 | D16: 5.2 | E16: 9 | F16: 0.5777777778 | G16: 1 | H16: 4 | I16: 3 | J16: 2 | K16: 2.4 | N16: 2080 | O16: 0.01879046313 | P16: 2.5 | Q16: 2.5 | R16: 2.5
